fUSD/lending_fUSD_20260505
["ID","MTS","AMOUNT","RATE_DAILY","PERIOD"]
[421625919,1777991349000,-500.0,0.00029232,2]
[421625918,1777991349000,-500.0,0.00029232,2]
[421625920,1777991349000,-468.5671239,0.00029232,2]
[421625915,1777991349000,-500.0,0.00029232,2]
[421625927,1777991370000,-500.0,0.00029232,2]
[421625932,1777991370000,-500.0,0.00029232,2]
[421625930,1777991370000,-500.0,0.00029232,2]
[421625928,1777991370000,-500.0,0.00029232,2]
[421625931,1777991370000,-500.0,0.00029232,2]
[421625929,1777991370000,-500.0,0.00029232,2]
[421625933,1777991370000,-500.0,0.00029232,2]
[421625925,1777991370000,-500.0,0.00029232,2]
[421625923,1777991370000,-500.0,0.00029232,2]
[421625924,1777991370000,-500.0,0.00029232,2]
[421625922,1777991370000,-500.0,0.00029232,2]
[421625921,1777991370000,-31.4328761,0.00029232,2]
[421625926,1777991370000,-500.0,0.00029232,2]
[421625935,1777991370000,-500.0,0.00029232,2]
[421625949,1777991370000,-164.69462371,0.00029232,2]
[421625936,1777991370000,-500.0,0.00029232,2]
[421625934,1777991370000,-500.0,0.00029232,2]
[421625948,1777991370000,-500.0,0.00029232,2]
[421625947,1777991370000,-500.0,0.00029232,2]
[421625944,1777991370000,-500.0,0.00029232,2]
[421625946,1777991370000,-500.0,0.00029232,2]
[421625942,1777991370000,-500.0,0.00029232,2]
[421625945,1777991370000,-500.0,0.00029232,2]
[421625941,1777991370000,-500.0,0.00029232,2]
[421625940,1777991370000,-500.0,0.00029232,2]
[421625938,1777991370000,-500.0,0.00029232,2]
[421625939,1777991370000,-500.0,0.00029232,2]
[421625937,1777991370000,-500.0,0.00029232,2]
[421625943,1777991370000,-500.0,0.00029232,2]
[421625950,1777991416000,11968.28394863,0.00012,2]
[421625951,1777991416000,12042.38433994,0.00012,2]
[421625953,1777991416000,622.32230503,0.00012,2]
[421625952,1777991416000,11995.76603562,0.00012,2]
[421625992,1777991432000,-165.0,0.00032265,30]
[421625989,1777991432000,-168.52,0.0003165,2]
[421625996,1777991432000,-2000.0,0.00032849,30]
[421626006,1777991432000,-150.0,0.00035877,7]
[421626007,1777991432000,-150.0,0.00035877,7]
[421625995,1777991432000,-3425.15810058,0.00032789,2]
[421625997,1777991432000,-162.0,0.00032921,3]
[421626008,1777991432000,-150.0,0.00035877,7]
[421625999,1777991432000,-4000.0,0.00034055,60]
[421626001,1777991432000,-3425.15810058,0.00034567,2]
[421626002,1777991432000,-4000.0,0.00034658,60]
[421626005,1777991432000,-150.0,0.00035877,30]
[421625998,1777991432000,-4000.0,0.00033452,60]
[421626004,1777991432000,-250.93,0.00035494,2]
[421625993,1777991432000,-172.03,0.00032545,30]
[421626000,1777991432000,-879.00029892,0.00034533,2]
[421625991,1777991432000,-2000.0,0.00032219,30]
[421625982,1777991432000,-1214.0616,0.0003079,30]
[421625994,1777991432000,-879.00029892,0.00032744,2]
[421626010,1777991432000,-150.0,0.00035877,7]
[421625970,1777991432000,-153.0,0.00029231,2]
[421625972,1777991432000,-115.0,0.00029231,2]
[421625975,1777991432000,-334.37652498,0.00029231,2]
[421625977,1777991432000,-81.44309311,0.00029233,2]
[421625976,1777991432000,-452.62347502,0.00029231,2]
[421625979,1777991432000,-159.37,0.00029398,2]
[421625987,1777991432000,-160.0,0.00031265,30]
[421625980,1777991432000,-16227.28995042,0.000295,120]
[421625978,1777991432000,-3343.71500747,0.00029233,2]
[421625984,1777991432000,-3425.15810058,0.00031011,2]
[421625983,1777991432000,-879.00029892,0.00030956,2]
[421625990,1777991432000,-6223.67089184,0.00031837,2]
[421625988,1777991432000,-2000.0,0.00031616,30]
[421625986,1777991432000,-2000.0,0.00031014,30]
[421625985,1777991432000,-4213.71,0.00031011,2]
[421625981,1777991432000,-433.6488,0.00030789,2]
[421626012,1777991432000,-150.0,0.00035877,7]
[421626003,1777991432000,-168.52,0.00034815,2]
[421626019,1777991432000,-885.22,0.00036606,2]
[421626032,1777991432000,-879.00029892,0.00038111,2]
[421626035,1777991432000,-386.53,0.00038237,2]
[421626046,1777991432000,-367.33422152,0.00038787,2]
[421626037,1777991432000,-2692.45118734,0.00038377,2]
[421626038,1777991432000,-3708.2174,0.00038587,2]
[421626047,1777991432000,-476.2,0.00039,120]
[421626036,1777991432000,-707.2905,0.00038346,120]
[421626028,1777991432000,-182.494,0.0003798,50]
[421626040,1777991432000,-500.0,0.00038686,15]
[421626039,1777991432000,-5000.0,0.00038666,120]
[421626042,1777991432000,-500.0,0.00038686,15]
[421626041,1777991432000,-500.0,0.00038686,15]
[421626044,1777991432000,-2500.0,0.00038687,2]
[421626045,1777991432000,-10058.34,0.00038787,2]
[421626049,1777991432000,-666.66667,0.0003929,112]
[421626048,1777991432000,-666.66666,0.0003929,112]
[421626043,1777991432000,-128359.3786,0.00038687,2]
[421626031,1777991432000,-638.26052843,0.00038048,21]
[421626011,1777991432000,-150.0,0.00035877,7]
[421626030,1777991432000,-4066.58227737,0.00038,2]
[421626013,1777991432000,-150.0,0.00035877,7]
[421626014,1777991432000,-3698.11052065,0.00035887,2]
[421626020,1777991432000,-3440.95,0.00036741,2]
[421626050,1777991432000,-666.66666,0.0003929,112]
[421626018,1777991432000,-180.57,0.00036561,120]
[421626021,1777991432000,-1159.61,0.00036851,2]
[421626017,1777991432000,-3425.15810058,0.00036344,2]
[421626016,1777991432000,-879.00029892,0.00036322,2]
[421626029,1777991432000,-1010.687,0.0003798,50]
[421626022,1777991432000,-162.51838138,0.00037044,2]
[421626023,1777991432000,-159.77,0.00037066,2]
[421626034,1777991432000,-1000.0,0.00038184,2]
[421626033,1777991432000,-3425.15810058,0.00038122,2]
[421626024,1777991432000,-4700.48242911,0.00037821,2]
[421626026,1777991432000,-150.0,0.0003787,7]
[421626027,1777991432000,-168.52,0.0003798,2]
[421626025,1777991432000,-150.0,0.0003787,7]
[421626015,1777991432000,-200.0,0.00035982,2]
[421626086,1777991433000,-500.0,0.00039689,2]
[421626090,1777991433000,-500.0,0.00039689,2]
[421626087,1777991433000,-500.0,0.00039689,2]
[421626083,1777991433000,-500.0,0.00039689,2]
[421626088,1777991433000,-500.0,0.00039689,2]
[421626089,1777991433000,-500.0,0.00039689,2]
[421626085,1777991433000,-500.0,0.00039689,2]
[421626092,1777991433000,-176.38465683,0.00039689,15]
[421626098,1777991433000,-500.0,0.00039689,15]
[421626093,1777991433000,-500.0,0.00039689,15]
[421626094,1777991433000,-244.79429426,0.00039689,15]
[421626101,1777991433000,-1501.93,0.0003969,2]
[421626095,1777991433000,-500.0,0.00039689,15]
[421626099,1777991433000,-464.0,0.0003969,5]
[421626102,1777991433000,-1501.93,0.0003969,2]
[421626084,1777991433000,-500.0,0.00039689,2]
[421626091,1777991433000,-447.85151678,0.00039689,10]
[421626081,1777991433000,-500.0,0.00039689,2]
[421626073,1777991433000,-297.25831533,0.0003968,2]
[421626077,1777991433000,-500.0,0.00039689,2]
[421626054,1777991433000,-6245.04,0.00039425,2]
[421626052,1777991433000,-2618.4729732,0.000394,2]
[421626051,1777991433000,-666.66667,0.0003929,112]
[421626053,1777991433000,-500.0,0.00039425,2]
[421626055,1777991433000,-34605.6770531,0.00039426,2]
[421626058,1777991433000,-150.0,0.000395,120]
[421626057,1777991433000,-1384.46082209,0.000395,2]
[421626056,1777991433000,-48521.12138289,0.000395,2]
[421626079,1777991433000,-500.0,0.00039689,2]
[421626059,1777991433000,-400.0,0.00039517,2]
[421626060,1777991433000,-1747.3,0.0003959,2]
[421626104,1777991433000,-1501.93,0.0003969,2]
[421626063,1777991433000,-510.4404932,0.0003959,2]
[421626065,1777991433000,-5000.0,0.0003959,2]
[421626067,1777991433000,-160.0,0.000396,72]
[421626069,1777991433000,-160.0,0.000396,72]
[421626075,1777991433000,-500.0,0.00039689,2]
[421626071,1777991433000,-11377.785139,0.0003966,2]
[421626061,1777991433000,-553.07,0.0003959,2]
[421626103,1777991433000,-1501.93,0.0003969,2]
[421626096,1777991433000,-266.29292688,0.00039689,15]
[421626097,1777991433000,-621.50924642,0.00039689,15]
[421626126,1777991433000,-500.0,0.0003969,2]
[421626128,1777991433000,-500.0,0.0003969,2]
[421626129,1777991433000,-500.0,0.0003969,2]
[421626130,1777991433000,-500.0,0.0003969,2]
[421626132,1777991433000,-6245.04,0.0003969,2]
[421626133,1777991433000,-6245.04,0.0003969,2]
[421626131,1777991433000,-174.90454226,0.0003969,2]
[421626134,1777991433000,-6245.04,0.0003969,2]
[421626122,1777991433000,-553.07,0.0003969,2]
[421626135,1777991433000,-6245.04,0.0003969,2]
[421626138,1777991433000,-14575.28133343,0.0003969,48]
[421626137,1777991433000,-365.0,0.0003969,5]
[421626139,1777991433000,-200.0,0.0003969,30]
[421626140,1777991433000,-8707.31364999,0.0003969,30]
[421626141,1777991433000,-67321.20372689,0.0003969,30]
[421626142,1777991433000,-25576.17547558,0.0003969,30]
[421626143,1777991433000,-1254.41808677,0.0003969,30]
[421626144,1777991433000,-942.24145342,0.0003969,30]
[421626105,1777991433000,-1501.93,0.0003969,2]
[421626127,1777991433000,-500.0,0.0003969,2]
[421626136,1777991433000,-6245.04,0.0003969,2]
[421626125,1777991433000,-284.14454834,0.0003969,2]
[421626124,1777991433000,-553.07,0.0003969,2]
[421626100,1777991433000,-182.76114761,0.0003969,2]
[421626106,1777991433000,-671.16,0.0003969,2]
[421626107,1777991433000,-671.16,0.0003969,2]
[421626108,1777991433000,-671.16,0.0003969,2]
[421626109,1777991433000,-671.16,0.0003969,2]
[421626112,1777991433000,-666.66667,0.0003969,116]
[421626111,1777991433000,-666.66667,0.0003969,116]
[421626113,1777991433000,-1747.3,0.0003969,2]
[421626110,1777991433000,-671.16,0.0003969,2]
[421626115,1777991433000,-1747.3,0.0003969,2]
[421626117,1777991433000,-1747.3,0.0003969,2]
[421626116,1777991433000,-1747.3,0.0003969,2]
[421626118,1777991433000,-501.49036166,0.0003969,30]
[421626119,1777991433000,-335.47957646,0.0003969,2]
[421626120,1777991433000,-553.07,0.0003969,2]
[421626121,1777991433000,-553.07,0.0003969,2]
[421626114,1777991433000,-1747.3,0.0003969,2]
[421626123,1777991433000,-553.07,0.0003969,2]
[421626159,1777991438000,-500.0,0.00038686,15]
[421626158,1777991438000,-39.15248918,0.00038686,15]
[421626157,1777991438000,-460.84751082,0.00038686,15]
[421626152,1777991438000,-152.0,0.00038474,7]
[421626156,1777991438000,-500.0,0.00038686,15]
[421626154,1777991438000,-441.46632711,0.00038686,15]
[421626153,1777991438000,-152.0,0.00038474,7]
[421626155,1777991438000,-58.53367289,0.00038686,15]
[421626161,1777991438000,-500.0,0.00038686,15]
[421626171,1777991438000,-73.27822097,0.00038686,15]
[421626170,1777991438000,-472.00101143,0.00038686,15]
[421626162,1777991438000,-134.42194997,0.00038686,15]
[421626163,1777991438000,-279.60854195,0.00038686,15]
[421626160,1777991438000,-500.0,0.00038686,15]
[421626165,1777991438000,-500.0,0.00038686,15]
[421626167,1777991438000,-74.7207676,0.00038686,15]
[421626164,1777991438000,-85.96950808,0.00038686,15]
[421626168,1777991438000,-500.0,0.00038686,15]
[421626169,1777991438000,-500.0,0.00038686,15]
[421626166,1777991438000,-425.2792324,0.00038686,15]
[421626202,1777991440000,-500.0,0.00038686,15]
[421626201,1777991440000,-426.72177903,0.00038686,15]
[421626203,1777991440000,-500.0,0.00038686,15]
[421626204,1777991440000,-500.0,0.00038686,15]
[421626205,1777991440000,-500.0,0.00038686,15]
[421626207,1777991440000,-500.0,0.00038686,15]
[421626208,1777991440000,-4708.37822097,0.0003969,30]
[421626209,1777991440000,-4343.39387517,0.0003969,30]
[421626206,1777991440000,-500.0,0.00038686,15]
[421626210,1777991441000,-75607.9565029,0.0003969,30]
[421626232,1777991444000,-563.47,0.00039367,2]
[421626233,1777991444000,-7263.67829492,0.0003969,30]
[421626248,1777991446000,-4064.88255461,0.0003969,30]
[421626247,1777991446000,-1415.92761595,0.0003969,30]
[421626249,1777991447000,-1621.6316994,0.0003969,30]
[421626265,1777991467000,8445.87486397,0.000107,2]
[421626264,1777991467000,10000.01,0.000107,2]
[421626263,1777991467000,10000.01,0.000107,2]
[421626261,1777991467000,8331.87654297,0.000107,2]
[421626262,1777991467000,10000.01,0.000107,2]
[421626270,1777991645000,260.0,0.000107,2]
[421626272,1777991849000,397.0,0.00017691,2]
[421626274,1777991861000,-150.0,0.00018209,2]
[421626275,1777991861000,-150.0,0.00018772,2]
[421626276,1777991861000,-151.13,0.00019353,2]
[421626277,1777991861000,-250.0,0.00019353,2]
[421626279,1777991861000,-153.72,0.000194,2]
[421626280,1777991861000,-323.39094929,0.0001993,2]
[421626278,1777991861000,-317.53730829,0.00019353,2]
[421626281,1777991861000,-151.13,0.00020643,2]
[421626283,1777991861000,-2101.3,0.00020951,2]
[421626284,1777991861000,-300.0,0.00020998,2]
[421626287,1777991861000,-543.0,0.00021,2]
[421626285,1777991861000,-1200.0,0.00020999,2]
[421626286,1777991861000,-300.0,0.00020999,2]
[421626273,1777991861000,-3549.8,0.00017691,2]
[421626288,1777991861000,-502.0,0.00021,2]
[421626282,1777991861000,-516.9,0.00020951,2]
[421626290,1777991861000,-300.0,0.00021288,2]
[421626303,1777991861000,-173.8,0.00024658,2]
[421626302,1777991861000,-202.11,0.00024658,2]
[421626304,1777991861000,-587.0,0.00024847,2]
[421626301,1777991861000,-195.39,0.00024658,2]
[421626300,1777991861000,-150.0,0.00024658,2]
[421626298,1777991861000,-151.13,0.00023223,2]
[421626299,1777991861000,-151.13,0.00024513,2]
[421626297,1777991861000,-1680.0,0.00022951,2]
[421626294,1777991861000,-1811.46,0.00022562,2]
[421626295,1777991861000,-420.0,0.00022841,2]
[421626293,1777991861000,-445.6,0.00022562,2]
[421626292,1777991861000,-151.13,0.00021933,2]
[421626291,1777991861000,-250.0,0.00021288,2]
[421626296,1777991861000,-420.0,0.00022842,2]
[421626289,1777991861000,-520.0,0.00021,2]
[421626305,1777991863000,162.49,0.00024658,2]
[421626306,1777991867000,186.19455146,0.000245,2]
[421626307,1777991870000,1730.769577,0.00024958,2]
[421626308,1777991923000,522.0,0.00022,2]
[421626309,1777991956000,150.0,0.00024658,2]
[421626311,1777992125000,150.0,0.00024658,2]
[421626312,1777992259000,172.58,0.00025,10]
[421626314,1777992283000,522.0,0.00022,2]
[421626315,1777992293000,150.0,0.00024658,2]
[421626316,1777992337000,-220.41150752,0.00025084,2]
[421626317,1777992356000,-315.49485182,0.00025084,2]
[421626318,1777992406000,1031.627,0.00025,10]
[421626319,1777992437000,-22.09364066,0.00025084,2]
[421626320,1777992437000,-250.0,0.00025444,2]
[421626322,1777992437000,-1161.85,0.00026,2]
[421626321,1777992437000,-151.13,0.00025803,2]
[421626324,1777992437000,-158.97,0.00026106,2]
[421626326,1777992437000,-325.98612766,0.00027356,2]
[421626325,1777992437000,-151.13,0.00027094,2]
[421626323,1777992437000,-250.0,0.00026017,2]
[421626327,1777992441000,-874.01387234,0.00027356,2]
[421626329,1777992441000,-194.95100055,0.00027357,2]
[421626328,1777992441000,-684.30215333,0.00027357,2]
[421626330,1777992454000,-219.85631898,0.00027357,2]
[421626331,1777992518000,157.63,0.00016542,2]
[421626334,1777992518000,157.63,0.00019299,2]
[421626333,1777992518000,157.63,0.0001838,2]
[421626332,1777992518000,157.63,0.00017461,2]
[421626339,1777992519000,157.63,0.00023894,2]
[421626338,1777992519000,157.63,0.00022975,2]
[421626337,1777992519000,157.63,0.00022056,2]
[421626336,1777992519000,157.63,0.00021137,2]
[421626335,1777992519000,157.63,0.00020218,2]
[421626340,1777992520000,157.63,0.00024813,2]
[421626342,1777992549000,-157.63,0.00026651,2]
[421626341,1777992549000,-157.63,0.00025732,2]
[421626346,1777992556000,-198.87452043,0.00027592,120]
[421626343,1777992556000,-5105.08499803,0.00027357,2]
[421626345,1777992556000,-157.63,0.0002757,2]
[421626344,1777992556000,-1161.85,0.00027525,2]
[421626347,1777992556000,-250.0,0.00027592,2]
[421626350,1777992556000,-4795.24,0.00028984,2]
[421626348,1777992556000,-151.13,0.00028384,2]
[421626351,1777992556000,-168.31408775,0.0002905,2]
[421626349,1777992556000,-157.63,0.00028489,2]
[421626353,1777992563000,-157.63,0.00029408,2]
[421626352,1777992563000,-993.53591225,0.0002905,2]
[421626354,1777992563000,-151.13,0.00029674,2]
[421626356,1777992563000,-5718.92429196,0.00029715,2]
[421626355,1777992563000,-1680.0,0.00029694,2]
[421626358,1777992563000,-855.0,0.00029814,2]
[421626357,1777992563000,-1000.0,0.00029814,2]
[421626359,1777992563000,-4999.99,0.00029815,2]
[421626360,1777992563000,-432.79,0.00029815,2]
[421626361,1777992563000,-3350.95,0.00029815,2]
[421626362,1777992563000,-324.37838478,0.00029815,2]
[421626364,1777992564000,-999.99,0.00029815,2]
[421626365,1777992564000,-7840.61382478,0.00029815,10]
[421626363,1777992564000,-1535.76161522,0.00029815,2]
[421626366,1777992616000,150.0,0.0002646,2]
[421626398,1777992631000,-161.0,0.00033265,30]
[421626393,1777992631000,-151.13,0.00032254,2]
[421626395,1777992631000,-5000.0,0.00032789,2]
[421626390,1777992631000,-157.63,0.00032165,2]
[421626400,1777992631000,-169.07,0.00033701,2]
[421626388,1777992631000,-195.85331405,0.00032,120]
[421626406,1777992631000,-162.51838138,0.00034689,2]
[421626403,1777992631000,-2240.0,0.00034365,3]
[421626397,1777992631000,-157.63,0.00033084,2]
[421626399,1777992631000,-151.13,0.00033544,2]
[421626404,1777992631000,-624.88,0.00034616,2]
[421626402,1777992631000,-161.0,0.00034265,30]
[421626401,1777992631000,-624.88,0.00033811,2]
[421626405,1777992631000,-560.0,0.00034626,2]
[421626394,1777992631000,-161.0,0.00032265,30]
[421626396,1777992631000,-624.88,0.00033006,2]
[421626392,1777992631000,-624.88,0.00032201,2]
[421626373,1777992631000,-158.97,0.00027214,2]
[421626389,1777992631000,-1161.85,0.000321,30]
[421626407,1777992631000,-200.0,0.00034708,2]
[421626374,1777992631000,-381.49452776,0.0003,3]
[421626375,1777992631000,-1618.50547224,0.0003,3]
[421626381,1777992631000,-151.13,0.00030964,2]
[421626377,1777992631000,-160.76988434,0.00030137,2]
[421626376,1777992631000,-2258.50657669,0.00030113,2]
[421626379,1777992631000,-1161.85,0.00030575,30]
[421626380,1777992631000,-286.84132275,0.00030919,2]
[421626378,1777992631000,-157.63,0.00030327,2]
[421626385,1777992631000,-412.73125576,0.000318,2]
[421626386,1777992631000,-1600.0,0.00031813,3]
[421626382,1777992631000,-157.63,0.00031246,2]
[421626383,1777992631000,-161.0,0.00031265,30]
[421626387,1777992631000,-1058.96105047,0.00031814,2]
[421626384,1777992631000,-927.68,0.00031718,2]
[421626391,1777992631000,-400.0,0.000322,2]
[421626408,1777992631000,-151.13,0.00034835,2]
[421626446,1777992631000,-3135.0,0.00037121,3]
[421626421,1777992631000,-927.68,0.00035682,2]
[421626452,1777992631000,-151.13,0.00037415,2]
[421626454,1777992631000,-267.36,0.00038034,30]
[421626456,1777992631000,-1086.88,0.00038034,30]
[421626460,1777992631000,-482.46889657,0.00038256,2]
[421626465,1777992631000,-1268.48887766,0.00038256,2]
[421626458,1777992631000,-200.0,0.0003811,2]
[421626471,1777992631000,-362.21241689,0.00038259,2]
[421626467,1777992631000,-300.0,0.00038259,2]
[421626469,1777992631000,-481.06571266,0.00038259,2]
[421626462,1777992631000,-168.66949624,0.00038256,2]
[421626475,1777992631000,-500.0,0.00038291,15]
[421626477,1777992631000,-500.0,0.00038291,15]
[421626479,1777992631000,-407.51393314,0.00038291,15]
[421626481,1777992631000,-500.0,0.00038291,15]
[421626409,1777992631000,-808.549,0.00034874,40]
[421626450,1777992631000,-200.0,0.0003726,2]
[421626440,1777992631000,-7739.3064037,0.00036855,2]
[421626473,1777992631000,-167.0,0.00038291,5]
[421626448,1777992631000,-360.0,0.00037234,2]
[421626438,1777992631000,-200.0,0.00036409,2]
[421626422,1777992631000,-150.0,0.00035726,2]
[421626411,1777992631000,-301.70754747,0.00035,30]
[421626417,1777992631000,-624.88,0.00035421,2]
[421626426,1777992631000,-150.0,0.00035726,2]
[421626413,1777992631000,-169.82271706,0.00035265,30]
[421626418,1777992631000,-200.0,0.00035558,2]
[421626424,1777992631000,-150.0,0.00035726,2]
[421626415,1777992631000,-4195.83,0.00035389,2]
[421626428,1777992631000,-150.0,0.00035877,7]
[421626483,1777992631000,-500.0,0.00038291,15]
[421626434,1777992631000,-150.0,0.00035877,7]
[421626444,1777992631000,-160.76988434,0.00036986,30]
[421626436,1777992631000,-151.13,0.00036125,2]
[421626430,1777992631000,-150.00000001,0.00035877,7]
[421626442,1777992631000,-3105.1935868,0.00036855,2]
[421626432,1777992631000,-150.0,0.00035877,7]
[421626535,1777992632000,-500.0,0.00038291,15]
[421626523,1777992632000,-500.0,0.00038291,15]
[421626540,1777992632000,-500.0,0.00038291,15]
[421626542,1777992632000,-500.0,0.00038291,15]
[421626536,1777992632000,-500.0,0.00038291,15]
[421626531,1777992632000,-500.0,0.00038291,15]
[421626534,1777992632000,-500.0,0.00038291,15]
[421626544,1777992632000,-500.0,0.00038291,15]
[421626537,1777992632000,-500.0,0.00038291,15]
[421626552,1777992632000,-500.0,0.00038291,15]
[421626539,1777992632000,-500.0,0.00038291,15]
[421626532,1777992632000,-500.0,0.00038291,15]
[421626545,1777992632000,-500.0,0.00038291,15]
[421626533,1777992632000,-500.0,0.00038291,15]
[421626558,1777992632000,-500.0,0.00038291,15]
[421626559,1777992632000,-500.0,0.00038291,15]
[421626550,1777992632000,-500.0,0.00038291,15]
[421626522,1777992632000,-500.0,0.00038291,15]
[421626538,1777992632000,-500.0,0.00038291,15]
[421626521,1777992632000,-500.0,0.00038291,15]
[421626496,1777992632000,-500.0,0.00038291,15]
[421626519,1777992632000,-500.0,0.00038291,15]
[421626492,1777992632000,-500.0,0.00038291,15]
[421626494,1777992632000,-500.0,0.00038291,15]
[421626560,1777992632000,-500.0,0.00038291,15]
[421626498,1777992632000,-500.0,0.00038291,15]
[421626490,1777992632000,-500.0,0.00038291,15]
[421626500,1777992632000,-500.0,0.00038291,15]
[421626488,1777992632000,-500.0,0.00038291,15]
[421626486,1777992632000,-500.0,0.00038291,15]
[421626524,1777992632000,-500.0,0.00038291,15]
[421626503,1777992632000,-500.0,0.00038291,15]
[421626518,1777992632000,-500.0,0.00038291,15]
[421626527,1777992632000,-500.0,0.00038291,15]
[421626525,1777992632000,-500.0,0.00038291,15]
[421626526,1777992632000,-500.0,0.00038291,15]
[421626529,1777992632000,-500.0,0.00038291,15]
[421626530,1777992632000,-500.0,0.00038291,15]
[421626528,1777992632000,-500.0,0.00038291,15]
[421626520,1777992632000,-500.0,0.00038291,15]
[421626505,1777992632000,-500.0,0.00038291,15]
[421626553,1777992632000,-500.0,0.00038291,15]
[421626567,1777992632000,-500.0,0.00038291,15]
[421626557,1777992632000,-500.0,0.00038291,15]
[421626582,1777992632000,-396.16956455,0.00038291,15]
[421626575,1777992632000,-500.0,0.00038291,15]
[421626578,1777992632000,-317.0585943,0.00038291,15]
[421626583,1777992632000,-633.31458896,0.00038291,15]
[421626580,1777992632000,-285.0564725,0.00038291,15]
[421626581,1777992632000,-500.0,0.00038291,15]
[421626579,1777992632000,-500.0,0.00038291,15]
[421626584,1777992632000,-465.90794738,0.00038291,15]
[421626585,1777992632000,-500.0,0.00038291,15]
[421626588,1777992632000,-500.0,0.00038291,15]
[421626589,1777992632000,-500.0,0.00038291,15]
[421626590,1777992632000,-340.009804,0.00038291,15]
[421626595,1777992632000,-3887.0,0.00038292,2]
[421626593,1777992632000,-1647.22138105,0.00038292,2]
[421626592,1777992632000,-48649.85789542,0.00038292,2]
[421626591,1777992632000,-276.26784637,0.00038291,15]
[421626594,1777992632000,-313.13150344,0.00038292,2]
[421626596,1777992632000,-24.42847988,0.00038292,2]
[421626597,1777992632000,-696.09491183,0.00038292,2]
[421626577,1777992632000,-386.40504881,0.00038291,15]
[421626554,1777992632000,-500.0,0.00038291,15]
[421626587,1777992632000,-500.0,0.00038291,15]
[421626576,1777992632000,-500.0,0.00038291,15]
[421626556,1777992632000,-500.0,0.00038291,15]
[421626549,1777992632000,-500.0,0.00038291,15]
[421626547,1777992632000,-500.0,0.00038291,15]
[421626561,1777992632000,-500.0,0.00038291,15]
[421626551,1777992632000,-500.0,0.00038291,15]
[421626555,1777992632000,-500.0,0.00038291,15]
[421626563,1777992632000,-500.0,0.00038291,15]
[421626562,1777992632000,-500.0,0.00038291,15]
[421626586,1777992632000,-649.68867294,0.00038291,15]
[421626570,1777992632000,-500.0,0.00038291,15]
[421626565,1777992632000,-500.0,0.00038291,15]
[421626574,1777992632000,-500.0,0.00038291,15]
[421626573,1777992632000,-218.65718242,0.00038291,15]
[421626571,1777992632000,-500.0,0.00038291,15]
[421626572,1777992632000,-500.0,0.00038291,15]
[421626569,1777992632000,-500.0,0.00038291,15]
[421626566,1777992632000,-500.0,0.00038291,15]
[421626568,1777992632000,-500.0,0.00038291,15]
[421626564,1777992632000,-500.0,0.00038291,15]
[421626598,1777992635000,174.97,0.00024658,2]
[421626612,1777992637000,-274.57330759,0.000318,2]
[421626616,1777992637000,-278.94165704,0.00038292,2]
[421626613,1777992637000,-138.15794814,0.000318,2]
[421626614,1777992637000,-412.73125573,0.000318,2]
[421626615,1777992637000,-1092.97786646,0.00038292,2]
[421626633,1777992638000,-448.20622507,0.00038292,2]
[421626721,1777992640000,-287.47585083,0.00038292,2]
[421626720,1777992640000,-1596.28143934,0.00038292,2]